bitfinex/quotes_SOLUSD_20251019
["timestamp","ask_amount","ask_price","bid_price","bid_amount"]
[1760852444271,14.20534663,187.36,187.35,0.2]
[1760852444701,14.53534663,187.36,187.35,0.2]
[1760852449592,3.32887142,187.36,187.35,0.88]
[1760852449895,3.32887142,187.36,187.35,0.2]
[1760852450085,3.65887142,187.36,187.35,0.2]
[1760852451288,3.32887142,187.36,187.35,0.2]
[1760852455402,105.42887142,187.36,187.35,0.2]
[1760852459179,116.30534663,187.36,187.35,0.2]
[1760852460187,116.63534663,187.36,187.35,0.2]
[1760852461202,14.53534663,187.36,187.35,0.2]
[1760852461813,14.53534663,187.36,187.34,0.2]
[1760852461982,3.32887142,187.35,187.34,0.2]
[1760852462182,3.65887142,187.35,187.34,0.2]
[1760852462378,14.20534663,187.35,187.34,0.2]
[1760852464898,33.75647521,187.32,187.3,0.2]
[1760852465098,33.75647521,187.32,187.29,0.2]
[1760852465099,10.87647521,187.3,187.26,0.2]
[1760852465305,3.32887142,187.28,187.26,0.2]
[1760852467321,10.87647521,187.27,187.26,0.2]
[1760852467623,14.20534663,187.27,187.26,0.2]
[1760852468216,3.32887142,187.27,187.26,0.86]
[1760852470100,3.32887142,187.29,187.26,0.86]
[1760852470101,112.97647521,187.31,187.26,0.86]
[1760852470306,112.97647521,187.31,187.27,0.66]
[1760852470507,3.32887142,187.28,187.27,0.66]
[1760852474120,3.32887142,187.28,187.26,0.2]
[1760852474324,113.30647521,187.31,187.26,0.2]
[1760852474523,113.30647521,187.31,187.26,0.86]
[1760852474711,3.32887142,187.27,187.26,0.86]
[1760852476025,3.32887142,187.27,187.26,0.2]
[1760852478198,3.32887142,187.27,187.26,0.86]
[1760852480620,102.1,187.33,187.26,0.86]
[1760852480819,102.1,187.32,187.26,0.2]
[1760852481125,3.32887142,187.27,187.26,0.2]
[1760852482024,3.32887142,187.27,187.26,0.86]
[1760852493938,3.32887142,187.28,187.26,0.86]
[1760852494127,3.32887142,187.28,187.27,0.66]
[1760852495234,3.32887142,187.28,187.26,0.2]
[1760852495424,3.32887142,187.27,187.26,0.2]
[1760852500521,3.32887142,187.27,187.26,0.86]
[1760852502646,3.32887142,187.27,187.26,0.2]
[1760852503023,3.65887142,187.27,187.26,0.2]
[1760852503338,3.32887142,187.27,187.26,0.2]
[1760852504127,3.32887142,187.27,187.26,0.92]
[1760852505945,3.32887142,187.27,187.26,0.2]
[1760852506149,3.32887142,187.27,187.26,0.92]
[1760852507235,3.32887142,187.27,187.26,0.2]
[1760852514534,3.32887142,187.27,187.26,0.92]
[1760852519442,3.32887142,187.27,187.26,0.2]
[1760852519649,3.65887142,187.27,187.26,0.2]
[1760852520628,3.32887142,187.27,187.26,0.2]
[1760852530759,3.65887142,187.27,187.26,0.2]
[1760852530951,7.26663961,187.27,187.26,0.2]
[1760852531148,6.93663961,187.27,187.26,0.2]
[1760852533365,17.81311482,187.27,187.26,0.2]
[1760852534850,17.81311482,187.27,187.26,0.9]
[1760852535051,6.93663961,187.27,187.26,0.9]
[1760852535258,6.93663961,187.27,187.26,0.2]
[1760852535968,6.93663961,187.27,187.26,0.9]
[1760852543675,102.1,187.28,187.26,0.9]
[1760852543875,3.32887142,187.27,187.26,0.9]
[1760852544056,3.32887142,187.27,187.26,0.2]
[1760852544470,6.93712637,187.27,187.26,0.2]
[1760852545678,17.81360158,187.27,187.26,0.2]
[1760852547780,18.14360158,187.27,187.26,0.2]
[1760852548594,18.14360158,187.27,187.24,0.1]
[1760852548762,10.87647521,187.24,187.22,0.2]
[1760852548956,17.81360158,187.23,187.22,0.2]
[1760852549156,10.87647521,187.22,187.21,0.2]
[1760852549356,21.142473,187.22,187.21,0.2]
[1760852549587,21.472473,187.22,187.21,0.2]
[1760852549757,21.472473,187.22,187.15,0.7]
[1760852549962,14.20534663,187.2,187.16,0.7]
[1760852550386,10.87647521,187.19,187.16,0.7]
[1760852550756,3.65887142,187.2,187.16,0.7]
[1760852551153,3.32887142,187.17,187.1,14.20534663]
[1760852551370,3.32887142,187.13,187.11,0.7]
[1760852552577,3.32887142,187.14,187.11,0.7]
[1760852553263,3.32887142,187.14,187.12,22.88]
[1760852553464,3.32887142,187.13,187.12,22.88]
[1760852553882,3.32887142,187.14,187.12,23.58]
[1760852554065,3.32887142,187.14,187.13,0.7]
[1760852554685,3.32887142,187.15,187.13,0.7]
[1760852554984,3.32887142,187.14,187.13,0.7]
[1760852561091,3.32887142,187.14,187.11,0.7]
[1760852561287,3.32887142,187.12,187.09,22.88]
[1760852561881,3.32887142,187.12,187.1,0.7]
[1760852562084,0.33,187.16,187.11,0.7]
[1760852562284,23.21,187.16,187.08,0.1]
[1760852562506,3.32887142,187.11,187.09,0.7]
[1760852563997,3.32887142,187.11,187.1,0.65]
[1760852564688,11.20647521,187.15,187.1,0.65]
[1760852564889,3.32887142,187.11,187.1,0.65]
[1760852566005,3.32887142,187.11,187.08,0.75]
[1760852566191,10.87647521,187.15,187.08,0.1]
[1760852566192,3.32887142,187.09,187.08,0.1]
[1760852566394,0.33,187.12,187.08,0.1]
[1760852566603,3.32887142,187.09,187.08,0.1]
[1760852567405,3.32887142,187.09,187.08,0.75]
[1760852569903,3.32887142,187.1,187.08,0.75]
[1760852573797,102.43,187.14,187.08,0.75]
[1760852574006,3.32887142,187.1,187.08,0.75]
[1760852574614,3.32887142,187.1,187.09,0.65]
[1760852578703,102.1,187.13,187.09,0.65]
[1760852578902,3.32887142,187.1,187.09,0.65]
[1760852579304,3.32887142,187.1,187.08,0.1]
[1760852579502,102.43,187.13,187.08,23.63]
[1760852579503,3.32887142,187.09,187.08,23.63]
[1760852581318,3.32887142,187.09,187.08,0.75]
[1760852582124,3.65887142,187.09,187.08,0.1]
[1760852583324,3.32887142,187.09,187.08,0.1]
[1760852583898,3.65887142,187.09,187.08,0.1]
[1760852585126,3.32887142,187.09,187.08,0.1]
[1760852586122,102.1,187.1,187.08,0.1]
[1760852586327,3.32887142,187.09,187.08,0.1]
[1760852589007,3.32887142,187.1,187.08,0.8]
[1760852592035,3.32887142,187.1,187.09,0.7]
[1760852592425,3.32887142,187.15,187.11,22.88]
[1760852592633,3.32887142,187.14,187.12,0.7]
[1760852592951,3.65887142,187.13,187.09,0.7]
[1760852593156,3.32887142,187.1,187.09,0.7]
[1760852593562,3.32887142,187.11,187.09,0.7]
[1760852593849,102.1,187.14,187.09,0.7]
[1760852593850,3.32887142,187.12,187.09,0.7]
[1760852594432,3.32887142,187.11,187.09,0.72]
[1760852595046,3.32887142,187.11,187.1,0.72]
[1760852595630,3.32887142,187.12,187.1,0.72]
[1760852596057,3.32887142,187.13,187.11,0.72]
[1760852596753,3.32887142,187.13,187.08,5.54553797]
[1760852596942,102.1,187.14,187.12,0.72]
[1760852597142,105.42887142,187.14,187.12,0.72]
[1760852597958,3.32887142,187.14,187.13,0.72]
[1760852598134,3.59867511,187.17,187.13,0.72]
[1760852598461,3.32887142,187.14,187.13,0.72]
[1760852600032,3.32887142,187.15,187.13,0.72]
[1760852600236,3.32887142,187.16,187.13,0.72]
[1760852600759,3.32887142,187.16,187.14,22.88]
[1760852601070,3.32887142,187.16,187.15,0.72]
[1760852601243,3.59964496,187.19,187.15,0.72]
[1760852601444,6.92851638,187.18,187.15,0.72]
[1760852601654,3.32887142,187.19,187.15,0.72]
[1760852601869,3.32887142,187.17,187.16,0.72]
[1760852602165,3.32887142,187.18,187.16,0.72]
[1760852602560,3.32887142,187.17,187.16,0.72]
[1760852603067,3.59971339,187.2,187.16,0.72]
[1760852603238,3.32887142,187.17,187.16,0.72]
[1760852603965,3.32887142,187.18,187.16,0.72]
[1760852604340,3.32887142,187.17,187.16,0.72]
[1760852605539,3.59971339,187.19,187.16,0.72]
[1760852605540,3.32887142,187.18,187.16,0.72]
[1760852605933,3.32887142,187.18,187.17,0.72]
[1760852608766,3.32887142,187.18,187.13,0.53438785]
[1760852609079,3.32887142,187.17,187.16,0.72]
[1760852609772,3.32887142,187.17,187.12,48.15639567]
[1760852610071,3.32887142,187.17,187.14,0.72]
[1760852610268,3.32887142,187.17,187.15,0.72]
[1760852610479,0.33,187.2,187.13,0.72]
[1760852610480,3.32887142,187.16,187.13,0.72]
[1760852610674,0.33,187.19,187.13,0.72]
[1760852610675,3.32887142,187.15,187.13,0.72]
[1760852610860,3.32887142,187.14,187.11,16.79071112]
[1760852611057,3.32887142,187.14,187.12,0.72]
[1760852611779,3.32887142,187.14,187.1,8.94048582]
[1760852611959,0.33,187.17,187.13,0.72]
[1760852611960,3.32887142,187.15,187.13,0.72]
[1760852615055,3.32887142,187.14,187.13,0.72]
[1760852616181,3.32887142,187.15,187.13,0.72]
[1760852618364,3.32887142,187.15,187.11,5.34436201]
[1760852618553,3.32887142,187.17,187.14,0.72]
[1760852618959,3.32887142,187.17,187.12,6.92467193]
[1760852619277,3.32887142,187.17,187.14,0.72]
[1760852619478,3.32887142,187.17,187.15,0.72]
[1760852620578,3.32887142,187.17,187.12,12.26882953]
[1760852620755,3.32887142,187.17,187.14,0.72]
[1760852623069,3.32887142,187.17,187.12,12.26882953]
[1760852623293,3.32887142,187.17,187.14,0.72]
[1760852623658,3.32887142,187.16,187.12,12.26882953]
[1760852623987,3.32887142,187.16,187.13,0.68]
[1760852629282,3.32887142,187.16,187.14,0.68]
[1760852630874,3.32887142,187.17,187.14,0.68]
[1760852632570,3.32887142,187.16,187.14,0.68]
[1760852635973,3.92423366,187.19,187.15,0.68]
[1760852636286,3.32887142,187.16,187.11,5.34437913]
[1760852636483,3.32887142,187.16,187.13,7.60467193]
[1760852636722,3.32887142,187.16,187.13,6.92467193]
[1760852636902,3.32887142,187.16,187.14,0.68]
[1760852638892,3.32887142,187.17,187.14,0.68]
[1760852639984,3.32887142,187.16,187.14,0.68]
[1760852643791,0.33,187.15,187.11,0.68]
[1760852643983,3.32887142,187.16,187.12,6.02437913]
[1760852644186,3.32887142,187.16,187.13,0.68]
[1760852644382,3.32887142,187.14,187.1,0.68]
[1760852644586,3.32887142,187.14,187.09,5.34495763]
[1760852644786,3.32887142,187.14,187.11,0.68]
[1760852644986,3.32887142,187.14,187.09,5.34495763]
[1760852645302,3.32887142,187.14,187.11,3.32887142]
[1760852645477,3.32887142,187.15,187.12,0.68]
[1760852645679,3.32887142,187.16,187.12,0.68]
[1760852646696,3.65887142,187.16,187.12,0.68]
[1760852646900,3.65887142,187.16,187.12,8.50823033]
[1760852647282,3.32887142,187.15,187.12,7.82823033]
[1760852647484,3.32887142,187.13,187.1,0.68]
[1760852647792,3.32887142,187.13,187.1,8.50823033]
[1760852648307,3.65887142,187.13,187.1,7.82823033]
[1760852649225,3.32887142,187.13,187.1,7.82823033]
[1760852649402,3.32887142,187.13,187.11,0.66]
[1760852649604,3.32887142,187.14,187.11,0.66]
[1760852650692,3.32887142,187.13,187.11,0.66]
[1760852651003,3.32887142,187.16,187.12,0.66]
[1760852651210,102.1,187.19,187.12,0.66]
[1760852651211,6.93708562,187.15,187.12,0.66]
[1760852651405,3.32887142,187.15,187.12,0.66]
[1760852653508,3.32887142,187.15,187.13,0.66]
[1760852653708,3.32887142,187.15,187.12,0.72]
[1760852654085,3.32887142,187.16,187.13,0.72]
[1760852654282,3.32887142,187.16,187.1,9.20794958]
[1760852654488,3.32887142,187.16,187.13,0.72]
[1760852654896,3.32887142,187.15,187.13,0.72]
[1760852659312,3.60854015,187.17,187.14,0.72]
[1760852659499,3.32887142,187.18,187.14,0.72]
[1760852659708,3.60849932,187.17,187.14,0.72]
[1760852660012,3.32887142,187.18,187.14,0.72]
[1760852660211,3.60855337,187.17,187.14,0.72]
[1760852660514,3.32887142,187.18,187.14,0.72]
[1760852661819,3.32887142,187.18,187.15,0.72]
[1760852674020,102.1,187.19,187.15,0.72]
[1760852674229,3.32887142,187.18,187.15,0.72]
[1760852679525,3.32887142,187.18,187.13,21.94721169]
[1760852679729,3.32887142,187.18,187.15,0.72]
[1760852680042,3.32887142,187.18,187.16,0.72]
[1760852682418,3.32887142,187.18,187.15,0.72]
[1760852682939,3.32887142,187.18,187.13,21.94721169]
[1760852683142,102.1,187.19,187.16,0.72]
[1760852683458,3.32887142,187.22,187.17,0.53427365]
[1760852683618,3.32887142,187.22,187.18,0.71]
[1760852684448,3.32887142,187.22,187.18,16.77554743]
[1760852684643,3.32887142,187.22,187.19,0.71]
[1760852684818,3.32887142,187.22,187.2,0.71]
[1760852685230,0.33,187.24,187.2,0.71]
[1760852685231,3.32887142,187.23,187.2,0.71]
[1760852685544,3.32887142,187.23,187.18,16.06554743]
[1760852685545,3.32887142,187.23,187.21,0.71]
[1760852685735,3.32887142,187.22,187.2,0.71]
[1760852685932,3.32887142,187.23,187.18,21.40786553]
[1760852686141,3.32887142,187.23,187.21,0.71]
[1760852687042,6.93199402,187.24,187.22,0.71]
[1760852687243,6.93199402,187.24,187.2,0.71]
[1760852687543,6.93199402,187.24,187.21,0.71]
[1760852687740,3.32887142,187.23,187.21,0.71]
[1760852691553,3.65887142,187.22,187.18,0.71]
[1760852691847,3.32887142,187.21,187.18,0.71]
[1760852692245,3.32887142,187.21,187.19,0.71]
[1760852694859,0.33,187.23,187.19,0.71]
[1760852695028,3.32887142,187.21,187.19,0.71]
[1760852695854,3.32887142,187.2,187.19,22.88]
[1760852696354,3.32887142,187.2,187.19,38.94726829]
[1760852696658,3.32887142,187.2,187.19,22.88]
[1760852696949,3.32887142,187.2,187.19,26.47863608]
[1760852698844,3.32887142,187.2,187.19,4.30863608]
[1760852699150,3.32887142,187.2,187.19,26.47863608]
[1760852700268,3.65887142,187.2,187.19,3.59863608]
[1760852700468,6.98774284,187.2,187.13,0.71]
[1760852700774,3.32887142,187.16,187.13,0.71]
[1760852701675,3.32887142,187.15,187.14,3.32887142]
[1760852702399,3.32887142,187.15,187.12,0.71]
[1760852702689,3.32887142,187.15,187.13,16.78157206]
[1760852703497,3.32887142,187.14,187.13,16.07157206]
[1760852704202,3.65887142,187.14,187.13,16.07157206]
[1760852704571,14.53534663,187.14,187.13,16.07157206]
[1760852704771,10.87647521,187.13,187.08,0.1]
[1760852704972,3.32887142,187.09,187.08,0.1]
[1760852707088,14.53534663,187.09,187.08,0.1]
[1760852708392,3.32887142,187.09,187.08,0.1]
[1760852712691,3.65887142,187.09,187.08,0.1]
[1760852714289,3.32887142,187.09,187.08,0.1]
[1760852715394,10.87647521,187.11,187.08,0.1]
[1760852715587,3.32887142,187.09,187.08,0.1]
[1760852717307,14.53534663,187.09,187.08,0.1]
[1760852719106,14.53534663,187.09,187.07,0.1]
[1760852719279,3.32887142,187.08,187.07,0.1]
[1760852719679,3.65887142,187.08,187.07,0.1]
[1760852720181,0.33,187.08,187.07,0.1]
[1760852720510,14.20534663,187.08,187.07,0.1]
[1760852721383,3.32887142,187.08,187.07,0.76]
[1760852724099,3.32887142,187.08,187.07,0.1]
[1760852728131,10.87647521,187.07,186.95,0.1]
[1760852728296,0.33,187.06,187.0,0.66]
[1760852728497,3.32887142,187.01,187.0,0.66]
[1760852731992,102.1,187.05,187.0,0.66]
[1760852732203,3.32887142,187.04,187.0,2.80459963]
[1760852732422,3.32887142,187.04,187.01,0.66]
[1760852732720,3.32887142,187.03,187.01,0.66]
[1760852733295,3.32887142,187.06,187.01,0.66]
[1760852733509,10.87647521,187.09,187.01,3.98887142]
[1760852733710,10.87647521,187.09,187.02,0.66]
[1760852733711,3.32887142,187.07,187.02,0.66]
[1760852733915,3.32887142,187.06,187.02,0.66]
[1760852734315,3.32887142,187.05,187.02,0.66]
[1760852735224,3.32887142,187.03,187.0,2.14459963]
[1760852735696,3.32887142,187.02,187.0,2.14459963]
[1760852735898,3.32887142,187.03,187.01,0.66]
[1760852736103,3.32887142,187.04,187.01,0.66]
[1760852737021,10.87647521,187.07,187.01,0.66]
[1760852737022,3.32887142,187.03,187.01,0.66]
[1760852738425,3.32887142,187.04,187.01,0.66]
[1760852738732,3.32887142,187.04,187.02,16.08191053]
[1760852738901,3.32887142,187.04,187.03,0.66]
[1760852741627,3.32887142,187.04,187.01,0.66]
[1760852741804,3.32887142,187.03,187.02,0.66]
[1760852743226,3.32887142,187.03,187.02,16.74191053]
[1760852743723,102.1,187.06,187.02,16.74191053]
[1760852744035,3.32887142,187.04,187.02,16.08191053]
[1760852744200,102.1,187.06,187.02,16.08191053]
[1760852744406,3.32887142,187.04,187.02,16.08191053]
[1760852744621,3.32887142,187.05,187.03,0.71]
[1760852745413,105.42887142,187.06,187.03,16.79104848]
[1760852745742,105.42887142,187.06,187.04,0.71]
[1760852745914,105.42887142,187.06,187.05,0.71]
[1760852746813,105.42887142,187.06,187.03,16.08104848]
[1760852747013,3.32887142,187.04,187.03,16.08104848]
[1760852747218,3.32887142,187.04,187.03,16.79104848]
[1760852747617,3.32887142,187.04,187.01,23.59]
[1760852747826,3.32887142,187.03,187.01,23.59]
[1760852748022,3.32887142,187.03,187.02,16.08191053]
[1760852748623,3.32887142,187.03,187.02,16.79191053]
[1760852748829,3.32887142,187.04,187.02,16.79191053]
[1760852749338,3.32887142,187.04,187.03,0.71]
[1760852749731,3.65887142,187.04,187.02,16.08191053]
[1760852749939,3.32887142,187.03,187.0,0.71]
[1760852750240,3.32887142,187.02,187.01,16.79277267]
[1760852750445,3.32887142,187.02,186.99,0.71]
[1760852750620,3.32887142,187.01,186.99,0.71]
[1760852750824,3.32887142,187.01,187.0,16.0836349]
[1760852752923,3.32887142,187.02,187.0,16.7936349]
[1760852753220,3.32887142,187.02,187.01,0.71]
[1760852753829,3.32887142,187.02,187.0,16.0836349]
[1760852754413,3.32887142,187.02,187.0,16.7936349]
[1760852754835,3.32887142,187.02,187.0,16.0836349]
[1760852755138,3.32887142,187.01,187.0,16.7936349]
[1760852755336,3.32887142,187.01,186.98,23.59]
[1760852755552,3.32887142,187.0,186.99,3.59146552]
[1760852755716,3.32887142,187.0,186.99,4.30146552]
[1760852756613,3.32887142,187.0,186.99,0.71]
[1760852757835,102.1,187.03,186.99,0.71]
[1760852758063,105.42887142,187.03,186.99,0.71]
[1760852758341,3.32887142,187.02,186.99,0.71]
[1760852760142,105.42887142,187.03,186.99,0.71]
[1760852760944,105.42887142,187.03,186.99,16.79191053]
[1760852761142,105.42887142,187.03,187.0,0.71]
[1760852762145,102.1,187.03,187.0,0.71]
[1760852762455,1.13,187.1,187.0,9.38644446]
[1760852762653,3.32887142,187.07,187.03,22.88]
[1760852762846,3.32887142,187.06,187.03,23.59]
[1760852763237,3.32887142,187.06,187.04,0.71]
[1760852763831,3.32887142,187.05,187.01,16.78932466]
[1760852764034,3.32887142,187.04,187.02,23.59]
[1760852764652,3.32887142,187.04,187.03,0.71]
[1760852766053,3.32887142,187.04,187.02,22.88]
[1760852766369,3.65887142,187.03,186.97,0.71]
[1760852766564,3.32887142,187.0,186.97,4.03887142]
[1760852766748,3.32887142,187.0,186.98,0.71]
[1760852766937,3.32887142,186.99,186.97,3.32887142]
[1760852767137,3.32887142,186.99,186.97,4.03887142]
[1760852767539,0.33,187.02,186.97,4.03887142]
[1760852767540,3.32887142,186.98,186.97,3.32887142]
[1760852767755,3.32887142,186.98,186.96,0.1]
[1760852768160,3.32887142,186.98,186.96,0.77]
[1760852769054,3.32887142,186.98,186.96,0.1]
[1760852769264,0.33,187.01,186.96,0.1]
[1760852769460,3.32887142,186.98,186.96,0.1]
[1760852769962,0.33,187.0,186.96,0.1]
[1760852769963,3.32887142,186.97,186.96,0.1]
[1760852771861,0.33,186.99,186.96,0.1]
[1760852772064,3.32887142,186.97,186.96,0.1]
[1760852774548,3.59123802,187.0,186.96,0.1]
[1760852774746,3.32887142,186.97,186.96,0.1]
[1760852776260,14.53534663,186.97,186.96,0.1]
[1760852776646,14.53534663,186.97,186.93,0.58]
[1760852776845,3.32887142,186.94,186.93,0.58]
[1760852777861,4.12887142,186.94,186.93,0.58]
[1760852778869,4.12887142,186.94,186.9,2.14540481]
[1760852779049,4.12887142,186.94,186.91,0.68]
[1760852779255,4.12887142,186.94,186.92,0.68]
[1760852779450,3.32887142,186.93,186.92,0.68]
[1760852779772,3.32887142,186.93,186.89,5.55068772]
[1760852779773,3.32887142,186.93,186.9,23.56]
[1760852779961,3.32887142,186.92,186.9,22.88]
[1760852780269,3.32887142,186.92,186.91,0.68]
[1760852780655,3.32887142,186.93,186.91,0.68]
[1760852781263,3.32887142,186.93,186.9,0.68]
[1760852781770,3.32887142,186.92,186.9,0.68]
[1760852782857,3.32887142,186.92,186.9,0.18]
[1760852783565,3.32887142,186.91,186.89,0.1]
[1760852784848,3.32887142,186.91,186.89,22.98]
[1760852785263,3.32887142,186.9,186.89,0.1]
[1760852787374,4.00887142,186.9,186.89,0.1]
[1760852787569,3.32887142,186.9,186.89,0.1]
[1760852791379,3.32887142,186.91,186.89,0.1]
[1760852791556,4.00887142,186.91,186.89,0.1]
[1760852792678,3.32887142,186.91,186.89,0.1]
[1760852794056,4.00887142,186.91,186.89,0.1]
[1760852794251,102.1,186.93,186.89,0.1]
[1760852794252,0.68,186.9,186.89,0.1]
[1760852794477,4.00887142,186.9,186.89,0.1]
[1760852795276,0.68,186.91,186.89,0.1]
[1760852795666,3.32887142,186.9,186.89,0.1]
[1760852795866,3.32887142,186.91,186.89,0.1]
[1760852796661,3.32887142,186.9,186.89,0.1]
[1760852797061,3.32887142,186.91,186.89,0.1]
[1760852797582,3.32887142,186.9,186.89,0.1]
[1760852797875,3.32887142,186.91,186.89,0.78]
[1760852798176,3.32887142,186.91,186.9,0.68]
[1760852798379,3.32887142,186.91,186.89,0.1]
[1760852798575,3.32887142,186.91,186.89,0.78]
[1760852799483,102.78,186.93,186.89,0.78]
[1760852799484,105.42887142,186.93,186.9,0.68]
[1760852799681,102.1,186.93,186.9,0.68]
[1760852800994,0.8,186.94,186.9,9.35932347]
[1760852801170,0.8,186.94,186.91,4.54388827]
[1760852801564,0.8,186.94,186.92,0.68]
[1760852801765,0.8,186.94,186.92,4.00887142]
[1760852802058,0.8,186.94,186.93,0.68]
[1760852803192,0.8,186.94,186.93,6.0295961]
[1760852803481,0.8,186.94,186.93,0.68]
[1760852804688,0.8,186.94,186.93,6.0295961]
[1760852804886,0.8,186.94,186.93,9.35846752]
[1760852805593,0.8,186.94,186.93,12.68733894]
[1760852806592,0.8,186.94,186.93,9.35846752]
[1760852806785,0.8,186.94,186.93,4.00887142]
[1760852806989,0.8,186.94,186.93,9.35846752]
[1760852808600,0.8,186.94,186.93,12.68733894]
[1760852810075,0.8,186.94,186.93,9.35846752]
[1760852810295,0.8,186.94,186.93,12.68733894]
[1760852810782,0.8,186.94,186.93,4.00887142]
[1760852810990,0.8,186.94,186.91,9.38877451]
[1760852811189,0.8,186.94,186.92,9.38877451]
[1760852811696,0.8,186.94,186.91,5.34990309]
[1760852811697,1.49,186.94,186.91,5.34990309]
[1760852811891,1.49,186.94,186.91,14.7386776]
[1760852812069,4.81887142,186.94,186.91,9.38877451]
[1760852812273,4.81887142,186.94,186.9,5.35042447]
[1760852812491,4.81887142,186.94,186.9,22.15009758]
[1760852812793,0.8,186.94,186.91,0.71]
[1760852814477,4.01887142,186.93,186.89,22.98]
[1760852814776,4.01887142,186.92,186.89,4.11887142]
[1760852814982,0.69,186.91,186.89,0.1]
[1760852816082,3.32887142,186.92,186.89,0.1]
[1760852816587,4.01887142,186.93,186.89,0.81]
[1760852816985,4.01887142,186.93,186.89,4.13887142]
[1760852817388,4.01887142,186.92,186.89,0.1]
[1760852817583,4.01887142,186.91,186.89,0.1]
[1760852817984,3.32887142,186.9,186.89,0.1]
[1760852818288,14.89534663,186.9,186.89,0.1]
[1760852821795,11.56647521,186.9,186.89,0.1]
[1760852821999,14.89534663,186.9,186.89,0.1]
[1760852822405,102.79,186.93,186.89,0.1]
[1760852822702,3.32887142,186.91,186.89,0.1]
[1760852824804,3.32887142,186.91,186.89,22.98]
[1760852824995,3.32887142,186.91,186.89,23.69]
[1760852825196,102.1,186.93,186.9,0.71]
[1760852825197,3.32887142,186.92,186.9,0.71]
[1760852825511,3.32887142,186.92,186.89,22.98]
[1760852825715,3.32887142,186.92,186.89,23.69]
[1760852825909,3.32887142,186.92,186.9,22.88]
[1760852827108,3.32887142,186.92,186.89,23.69]
[1760852828208,3.32887142,186.92,186.89,0.81]
[1760852828392,3.32887142,186.91,186.89,0.81]
[1760852829009,4.02887142,186.91,186.89,0.1]
[1760852829206,3.32887142,186.9,186.89,0.1]
[1760852829794,4.02887142,186.9,186.89,0.1]
[1760852830302,14.90534663,186.9,186.89,0.1]
[1760852832399,3.32887142,186.9,186.89,0.1]
[1760852832897,4.02887142,186.9,186.89,0.1]
[1760852836113,14.90534663,186.9,186.89,0.1]
[1760852839704,15.70534663,186.9,186.89,0.1]
[1760852840639,12.38647521,186.9,186.89,0.1]
[1760852840824,15.71534663,186.9,186.89,0.1]
[1760852841324,15.00534663,186.9,186.89,0.1]
[1760852842916,15.71534663,186.9,186.89,0.1]
[1760852843117,14.26678294,186.9,186.89,0.1]
[1760852846924,10.87647521,186.89,186.81,0.1]
[1760852847422,3.32887142,186.83,186.81,0.1]
[1760852847624,10.87647521,186.89,186.81,0.1]
[1760852847828,3.32887142,186.84,186.81,0.1]
[1760852848022,3.32887142,186.83,186.81,0.1]
[1760852850032,10.87647521,186.89,186.82,0.67]
[1760852850331,3.32887142,186.86,186.82,0.67]
[1760852850534,3.32887142,186.86,186.82,11.54647521]
[1760852852628,102.1,186.88,186.82,10.87647521]
[1760852852825,3.32887142,186.86,186.82,11.54647521]
[1760852853414,0.8,186.9,186.83,0.67]
[1760852853633,3.32887142,186.88,186.83,12.21647521]
[1760852853819,3.32887142,186.88,186.84,0.67]
[1760852854333,3.32887142,186.88,186.85,10.87647521]
[1760852855217,3.32887142,186.88,186.85,11.54647521]
[1760852855833,10.87647521,186.92,186.85,11.54647521]
[1760852856128,3.32887142,186.88,186.85,11.54647521]
[1760852856711,10.87647521,186.92,186.85,10.87647521]
[1760852856911,3.32887142,186.88,186.85,10.87647521]
[1760852857331,11.58647521,186.92,186.85,10.87647521]